[Event "Early-Titled-Tuesday-Blitz-January-23-2024"]
[Site "Chess.com"]
[Date "2024.01.23"]
[Round "5"]
[White "ContrVersia"]
[Black "DTChess"]
[Result "1-0"]
[WhiteElo "2848"]
[BlackElo "2624"]
[TimeControl "180+1"]
[EndTime "8:55:38 PST"]
[Termination "ContrVersia won by checkmate"]

1. c4 {[%clk 0:02:59.6]} 1... Nf6 {[%clk 0:02:59.1]} 2. Nc3 {[%clk 0:02:59.5]}
2... g6 {[%clk 0:02:59.5]} 3. d4 {[%clk 0:02:58.7]} 3... Bg7 {[%clk 0:02:59.3]}
4. e4 {[%clk 0:02:58.8]} 4... d6 {[%clk 0:02:59.6]} 5. h3 {[%clk 0:02:57.5]}
5... O-O {[%clk 0:02:59.6]} 6. Be3 {[%clk 0:02:56.8]} 6... Nbd7 {[%clk
0:02:56.5]} 7. Nf3 {[%clk 0:02:55.5]} 7... c5 {[%clk 0:02:56.4]} 8. d5 {[%clk
0:02:51.5]} 8... b5 {[%clk 0:02:56.1]} 9. cxb5 {[%clk 0:02:51.3]} 9... a6 {[%clk
0:02:55.4]} 10. a4 {[%clk 0:02:50.2]} 10... Ne8 {[%clk 0:02:54.4]} 11. Qc2
{[%clk 0:02:47]} 11... axb5 {[%clk 0:02:52.5]} 12. Bxb5 {[%clk 0:02:46.6]} 12...
Nc7 {[%clk 0:02:51.4]} 13. Be2 {[%clk 0:02:42.2]} 13... Ba6 {[%clk 0:02:49.5]}
14. O-O {[%clk 0:02:41.9]} 14... Ne5 {[%clk 0:02:27.5]} 15. Nxe5 {[%clk
0:02:35.3]} 15... Bxe5 {[%clk 0:02:26.1]} 16. Rfb1 {[%clk 0:02:19.6]} 16... Bxe2
{[%clk 0:02:19.1]} 17. Nxe2 {[%clk 0:02:20.5]} 17... Na6 {[%clk 0:02:17.8]} 18.
Ra3 {[%clk 0:02:20.8]} 18... Nb4 {[%clk 0:02:17.2]} 19. Qc4 {[%clk 0:02:21.1]}
19... Qc8 {[%clk 0:02:02.5]} 20. Bd2 {[%clk 0:02:16]} 20... Rb8 {[%clk
0:01:56.1]} 21. b3 {[%clk 0:02:11.6]} 21... f5 {[%clk 0:01:42.3]} 22. a5 {[%clk
0:02:10.7]} 22... fxe4 {[%clk 0:01:41.4]} 23. Qxe4 {[%clk 0:01:59.6]} 23... Qa6
{[%clk 0:01:36.9]} 24. Qc4 {[%clk 0:01:54.9]} 24... Qa8 {[%clk 0:01:32.3]} 25.
Bc3 {[%clk 0:01:42.9]} 25... Bxc3 {[%clk 0:01:08.4]} 26. Nxc3 {[%clk 0:01:39.6]}
26... Qa6 {[%clk 0:01:04.6]} 27. Ra4 {[%clk 0:01:19.7]} 27... Qa8 {[%clk
0:00:52.5]} 28. a6 {[%clk 0:01:16.3]} 28... Qa7 {[%clk 0:00:48.8]} 29. Re1
{[%clk 0:01:13.4]} 29... Rf7 {[%clk 0:00:44.6]} 30. Nb5 {[%clk 0:01:07.9]} 30...
Qb6 {[%clk 0:00:39.1]} 31. a7 {[%clk 0:01:07.7]} 31... Ra8 {[%clk 0:00:39.2]}
32. Re6 {[%clk 0:00:40.1]} 32... Qb7 {[%clk 0:00:30.7]} 33. Ra1 {[%clk
0:00:28.4]} 33... Kg7 {[%clk 0:00:27.7]} 34. Rae1 {[%clk 0:00:26.8]} 34... Rxa7
{[%clk 0:00:27.8]} 35. Nxa7 {[%clk 0:00:26.5]} 35... Qxa7 {[%clk 0:00:28.3]} 36.
h4 {[%clk 0:00:25.6]} 36... Qa2 {[%clk 0:00:26.8]} 37. f3 {[%clk 0:00:18.7]}
37... Qa7 {[%clk 0:00:24.4]} 38. h5 {[%clk 0:00:18.2]} 38... gxh5 {[%clk
0:00:22.4]} 39. Kh2 {[%clk 0:00:16.7]} 39... Qb7 {[%clk 0:00:21.7]} 40. Qh4
{[%clk 0:00:15.3]} 40... Nxd5 {[%clk 0:00:20.4]} 41. Qxh5 {[%clk 0:00:15.2]}
41... Nf6 {[%clk 0:00:19.8]} 42. Qg5+ {[%clk 0:00:13.5]} 42... Kf8 {[%clk
0:00:20.1]} 43. Qh6+ {[%clk 0:00:13.7]} 43... Kg8 {[%clk 0:00:19.7]} 44. Qg5+
{[%clk 0:00:08.4]} 44... Kf8 {[%clk 0:00:19.8]} 45. Qh4 {[%clk 0:00:06.4]} 45...
Qxb3 {[%clk 0:00:17.4]} 46. Rxe7 {[%clk 0:00:05.1]} 46... Rxe7 {[%clk
0:00:17.2]} 47. Qxf6+ {[%clk 0:00:05.4]} 47... Rf7 {[%clk 0:00:12.2]} 48. Qh8#
{[%clk 0:00:05.1]} 1-0

[Event "Early-Titled-Tuesday-Blitz-January-23-2024"]
[Site "Chess.com"]
[Date "2024.01.23"]
[Round "5"]
[White "Janosik"]
[Black "Sanyura"]
[Result "1-0"]
[WhiteElo "2845"]
[BlackElo "2613"]
[TimeControl "180+1"]
[EndTime "8:55:39 PST"]
[Termination "Janosik won by resignation"]

1. d4 {[%clk 0:03:00.9]} 1... Nf6 {[%clk 0:02:52.4]} 2. c4 {[%clk 0:03:01.4]}
2... g6 {[%clk 0:02:52.4]} 3. Nc3 {[%clk 0:02:56.7]} 3... Bg7 {[%clk 0:02:52.4]}
4. e4 {[%clk 0:02:57.2]} 4... d6 {[%clk 0:02:52.9]} 5. Bg5 {[%clk 0:02:57.1]}
5... O-O {[%clk 0:02:53.4]} 6. h3 {[%clk 0:02:57.7]} 6... c5 {[%clk 0:02:53.1]}
7. d5 {[%clk 0:02:57.9]} 7... e6 {[%clk 0:02:53.2]} 8. Bd3 {[%clk 0:02:54.9]}
8... exd5 {[%clk 0:02:53.6]} 9. cxd5 {[%clk 0:02:55.3]} 9... Re8 {[%clk
0:02:54.2]} 10. Nge2 {[%clk 0:02:50.8]} 10... Nbd7 {[%clk 0:02:53.2]} 11. O-O
{[%clk 0:02:50.4]} 11... Ne5 {[%clk 0:02:53.5]} 12. Bc2 {[%clk 0:02:50.8]} 12...
h6 {[%clk 0:02:51.2]} 13. Bh4 {[%clk 0:02:50.9]} 13... b5 {[%clk 0:02:45.5]} 14.
Nxb5 {[%clk 0:02:44.4]} 14... Ba6 {[%clk 0:02:27.8]} 15. Nbc3 {[%clk 0:02:35.1]}
15... Nc4 {[%clk 0:02:24]} 16. b3 {[%clk 0:02:14.2]} 16... Na3 {[%clk
0:02:03.6]} 17. Bd3 {[%clk 0:02:14.1]} 17... Bxd3 {[%clk 0:02:01.2]} 18. Qxd3
{[%clk 0:02:13.8]} 18... Qa5 {[%clk 0:01:48.2]} 19. Rad1 {[%clk 0:02:05.9]}
19... Rac8 {[%clk 0:01:32]} 20. Bg3 {[%clk 0:01:45.6]} 20... c4 {[%clk
0:01:31.2]} 21. bxc4 {[%clk 0:01:38.8]} 21... Nxc4 {[%clk 0:01:32.1]} 22. Rb1
{[%clk 0:01:37.8]} 22... Nd7 {[%clk 0:01:22.7]} 23. Rfc1 {[%clk 0:01:19.3]}
23... Na3 {[%clk 0:01:11.4]} 24. Ra1 {[%clk 0:00:44.4]} 24... Nc5 {[%clk
0:01:11.2]} 25. Qf3 {[%clk 0:00:42.6]} 25... Nc4 {[%clk 0:00:56.8]} 26. Kh2
{[%clk 0:00:30.1]} 26... Nd2 {[%clk 0:00:45.4]} 27. Qf4 {[%clk 0:00:26.2]} 27...
Ncxe4 {[%clk 0:00:23.2]} 28. Nxe4 {[%clk 0:00:23.8]} 28... Rxc1 {[%clk
0:00:21.8]} 29. Rxc1 {[%clk 0:00:14.3]} 29... Nxe4 {[%clk 0:00:22]} 30. Qf3
{[%clk 0:00:12.2]} 30... Qd2 {[%clk 0:00:17.9]} 31. Bf4 {[%clk 0:00:09.9]} 31...
Ng5 {[%clk 0:00:16.4]} 32. Bxg5 {[%clk 0:00:09.5]} 32... hxg5 {[%clk 0:00:15.8]}
33. Rc7 {[%clk 0:00:10.4]} 33... Be5+ {[%clk 0:00:13.8]} 34. Ng3 {[%clk
0:00:10.4]} 34... Qf4 {[%clk 0:00:13.5]} 35. Rxa7 {[%clk 0:00:09.1]} 35... Kg7
{[%clk 0:00:12]} 36. Rd7 {[%clk 0:00:07.6]} 36... Ra8 {[%clk 0:00:10.8]} 37. a3
{[%clk 0:00:06.7]} 37... Qxf3 {[%clk 0:00:09.8]} 38. gxf3 {[%clk 0:00:07.6]}
38... Rxa3 {[%clk 0:00:10.4]} 39. Kg2 {[%clk 0:00:08.5]} 39... Ra2 {[%clk
0:00:09.1]} 40. Ne4 {[%clk 0:00:08.9]} 40... Ra3 {[%clk 0:00:05.9]} 41. Nxg5
{[%clk 0:00:08.7]} 41... Rd3 {[%clk 0:00:05.7]} 42. Rxf7+ {[%clk 0:00:08.2]}
42... Kg8 {[%clk 0:00:06.2]} 43. Rd7 {[%clk 0:00:08.1]} 43... Rxd5 {[%clk
0:00:06.5]} 44. Ne4 {[%clk 0:00:08.5]} 44... Rd3 {[%clk 0:00:05.5]} 45. h4
{[%clk 0:00:09.4]} 45... d5 {[%clk 0:00:05.6]} 46. Nc5 {[%clk 0:00:09]} 46...
Bf6 {[%clk 0:00:05.7]} 47. Nxd3 {[%clk 0:00:08.5]} 1-0

[Event "Early-Titled-Tuesday-Blitz-January-23-2024"]
[Site "Chess.com"]
[Date "2024.01.23"]
[Round "5"]
[White "Manukyan_Artak"]
[Black "grzechu96"]
[Result "0-1"]
[WhiteElo "2507"]
[BlackElo "2698"]
[TimeControl "180+1"]
[EndTime "8:55:40 PST"]
[Termination "grzechu96 won by resignation"]

1. e4 {[%clk 0:03:00.9]} 1... c5 {[%clk 0:02:56.5]} 2. Nf3 {[%clk 0:02:58.2]}
2... d6 {[%clk 0:02:56.2]} 3. Bb5+ {[%clk 0:02:57.6]} 3... Bd7 {[%clk
0:02:55.8]} 4. Bxd7+ {[%clk 0:02:57.2]} 4... Nxd7 {[%clk 0:02:56.7]} 5. c4
{[%clk 0:02:56.6]} 5... Ngf6 {[%clk 0:02:55.1]} 6. Nc3 {[%clk 0:02:55.4]} 6...
Ne5 {[%clk 0:02:55.4]} 7. d3 {[%clk 0:02:53.4]} 7... e6 {[%clk 0:02:44.4]} 8.
Bf4 {[%clk 0:02:52]} 8... Nfd7 {[%clk 0:02:41.9]} 9. O-O {[%clk 0:02:49.8]} 9...
Be7 {[%clk 0:02:42.1]} 10. Rb1 {[%clk 0:02:48.1]} 10... O-O {[%clk 0:02:31.1]}
11. a3 {[%clk 0:02:47.2]} 11... Bf6 {[%clk 0:02:30.4]} 12. Ne1 {[%clk
0:02:42.6]} 12... Qe7 {[%clk 0:02:22.9]} 13. h3 {[%clk 0:02:37.5]} 13... Nc6
{[%clk 0:02:20]} 14. Bd2 {[%clk 0:02:30.4]} 14... Nd4 {[%clk 0:02:11.9]} 15. f4
{[%clk 0:02:26]} 15... Rab8 {[%clk 0:01:59.8]} 16. b4 {[%clk 0:02:01.9]} 16...
cxb4 {[%clk 0:01:57.6]} 17. axb4 {[%clk 0:01:59.5]} 17... b5 {[%clk 0:01:54.7]}
18. g4 {[%clk 0:01:49.9]} 18... g6 {[%clk 0:01:48.3]} 19. g5 {[%clk 0:01:38.7]}
19... Bg7 {[%clk 0:01:48.3]} 20. h4 {[%clk 0:01:26]} 20... bxc4 {[%clk
0:01:47.2]} 21. dxc4 {[%clk 0:01:21.8]} 21... Rfc8 {[%clk 0:01:46.7]} 22. h5
{[%clk 0:01:14.3]} 22... Rxc4 {[%clk 0:01:43.5]} 23. h6 {[%clk 0:01:06.1]} 23...
Bh8 {[%clk 0:01:40.6]} 24. Ng2 {[%clk 0:01:05.8]} 24... Rbc8 {[%clk 0:01:32.6]}
25. Rc1 {[%clk 0:01:00.7]} 25... R4c7 {[%clk 0:01:00.5]} 26. Be3 {[%clk
0:00:49.6]} 26... Nb3 {[%clk 0:00:50.4]} 27. Qxb3 {[%clk 0:00:45.9]} 27... Rxc3
{[%clk 0:00:50.2]} 28. Rxc3 {[%clk 0:00:40.9]} 28... Rxc3 {[%clk 0:00:50.3]} 29.
Qa2 {[%clk 0:00:40.8]} 29... Nb6 {[%clk 0:00:40]} 30. Ra1 {[%clk 0:00:35.4]}
30... Nc8 {[%clk 0:00:16.6]} 31. Qd2 {[%clk 0:00:20.4]} 31... Qb7 {[%clk
0:00:13.3]} 32. Bd4 {[%clk 0:00:16.7]} 32... Bxd4+ {[%clk 0:00:12.4]} 33. Qxd4
{[%clk 0:00:17.6]} 33... Qb6 {[%clk 0:00:12.7]} 34. Qxb6 {[%clk 0:00:17.4]}
34... axb6 {[%clk 0:00:13.6]} 35. Ra8 {[%clk 0:00:16.3]} 35... Kf8 {[%clk
0:00:13.7]} 36. Kf2 {[%clk 0:00:15.8]} 36... Ke7 {[%clk 0:00:14.1]} 37. Ne3
{[%clk 0:00:15.6]} 37... Kd8 {[%clk 0:00:09]} 38. Ng4 {[%clk 0:00:15.6]} 38...
Kc7 {[%clk 0:00:03.6]} 39. Nf6 {[%clk 0:00:15.8]} 39... Kb7 {[%clk 0:00:04]} 40.
Ra2 {[%clk 0:00:15.4]} 40... Ne7 {[%clk 0:00:01.9]} 41. Nxh7 {[%clk 0:00:15.5]}
41... Rh3 {[%clk 0:00:01.5]} 42. Nf6 {[%clk 0:00:14.8]} 42... Rh2+ {[%clk
0:00:01.7]} 43. Kg3 {[%clk 0:00:15.2]} 43... Rxa2 {[%clk 0:00:02.2]} 44. h7
{[%clk 0:00:15.8]} 44... Ra8 {[%clk 0:00:02.8]} 45. Ng8 {[%clk 0:00:15.6]} 45...
Rxg8 {[%clk 0:00:02.6]} 46. hxg8=Q {[%clk 0:00:14.6]} 46... Nxg8 {[%clk
0:00:03.5]} 47. f5 {[%clk 0:00:14.9]} 47... exf5 {[%clk 0:00:03.4]} 48. exf5
{[%clk 0:00:15.7]} 48... gxf5 {[%clk 0:00:03.8]} 49. Kf4 {[%clk 0:00:16.6]}
49... Ne7 {[%clk 0:00:04.4]} 50. g6 {[%clk 0:00:17.1]} 50... fxg6 {[%clk
0:00:04.2]} 51. Kg5 {[%clk 0:00:18]} 51... Kc6 {[%clk 0:00:04.7]} 0-1

[Event "Early-Titled-Tuesday-Blitz-January-23-2024"]
[Site "Chess.com"]
[Date "2024.01.23"]
[Round "5"]
[White "sokidze"]
[Black "karinachess1"]
[Result "1-0"]
[WhiteElo "2837"]
[BlackElo "2606"]
[TimeControl "180+1"]
[EndTime "8:55:41 PST"]
[Termination "sokidze won by resignation"]

1. d4 {[%clk 0:03:00.9]} 1... Nf6 {[%clk 0:02:59.8]} 2. c4 {[%clk 0:03:01.3]}
2... e6 {[%clk 0:03:00.1]} 3. Nf3 {[%clk 0:03:01.8]} 3... d5 {[%clk 0:03:00.5]}
4. g3 {[%clk 0:03:02.4]} 4... dxc4 {[%clk 0:03:00.6]} 5. Bg2 {[%clk 0:03:02.8]}
5... Nc6 {[%clk 0:03:00.9]} 6. Qa4 {[%clk 0:03:02.5]} 6... Bb4+ {[%clk
0:03:00.6]} 7. Bd2 {[%clk 0:03:02.7]} 7... Bd6 {[%clk 0:03:00.9]} 8. Qxc4 {[%clk
0:03:01.9]} 8... O-O {[%clk 0:03:00.8]} 9. O-O {[%clk 0:03:01.7]} 9... e5 {[%clk
0:03:01.3]} 10. d5 {[%clk 0:02:33.3]} 10... Ne7 {[%clk 0:03:01]} 11. Nc3 {[%clk
0:02:32.8]} 11... a6 {[%clk 0:03:00.2]} 12. a4 {[%clk 0:02:31]} 12... c6 {[%clk
0:02:54.4]} 13. dxc6 {[%clk 0:02:20.6]} 13... Nxc6 {[%clk 0:02:55.3]} 14. Bg5
{[%clk 0:02:15.8]} 14... Be6 {[%clk 0:02:43]} 15. Qh4 {[%clk 0:02:03.4]} 15...
Be7 {[%clk 0:02:43.2]} 16. Rfd1 {[%clk 0:01:50.6]} 16... Qb6 {[%clk 0:02:35.3]}
17. Ne4 {[%clk 0:01:38.2]} 17... Nxe4 {[%clk 0:02:31.8]} 18. Qxe4 {[%clk
0:01:39.1]} 18... f6 {[%clk 0:02:18.6]} 19. Be3 {[%clk 0:01:33.7]} 19... Qb4
{[%clk 0:02:12.5]} 20. Nd2 {[%clk 0:01:29.8]} 20... Rfd8 {[%clk 0:02:06.8]} 21.
Qxb4 {[%clk 0:01:13.3]} 21... Bxb4 {[%clk 0:02:05]} 22. Ne4 {[%clk 0:01:10.3]}
22... Bb3 {[%clk 0:01:59.2]} 23. Rdc1 {[%clk 0:01:04.1]} 23... Bd5 {[%clk
0:01:42.4]} 24. g4 {[%clk 0:00:56.7]} 24... Rac8 {[%clk 0:01:39.8]} 25. Bb6
{[%clk 0:00:55.2]} 25... Rd7 {[%clk 0:01:35.7]} 26. e3 {[%clk 0:00:43.8]} 26...
Kf7 {[%clk 0:01:22.9]} 27. h3 {[%clk 0:00:40.1]} 27... h6 {[%clk 0:01:09.9]} 28.
Bc5 {[%clk 0:00:34.8]} 28... Rcd8 {[%clk 0:00:54.8]} 29. Bb6 {[%clk 0:00:27.8]}
29... Rc8 {[%clk 0:00:53.8]} 30. a5 {[%clk 0:00:17.7]} 30... Ke6 {[%clk
0:00:46.4]} 31. Bc5 {[%clk 0:00:12.4]} 31... Bxa5 {[%clk 0:00:23.5]} 32. Rd1
{[%clk 0:00:02.4]} 32... Bc7 {[%clk 0:00:20.1]} 33. Ba3 {[%clk 0:00:02.3]} 33...
b6 {[%clk 0:00:16.4]} 34. Rdc1 {[%clk 0:00:02.1]} 34... Bd8 {[%clk 0:00:09.2]}
35. Rc2 {[%clk 0:00:01.3]} 35... Rdc7 {[%clk 0:00:04.5]} 36. Rac1 {[%clk
0:00:01.7]} 36... Ne7 {[%clk 0:00:03.8]} 37. Rxc7 {[%clk 0:00:01.6]} 37... Rxc7
{[%clk 0:00:04.7]} 38. Rd1 {[%clk 0:00:01.7]} 38... Bxe4 {[%clk 0:00:04.6]} 39.
Bxe4 {[%clk 0:00:01.6]} 39... Rd7 {[%clk 0:00:04.4]} 40. Bf5+ {[%clk 0:00:01.4]}
40... Nxf5 {[%clk 0:00:04]} 41. gxf5+ {[%clk 0:00:02.3]} 41... Kxf5 {[%clk
0:00:02.4]} 42. Rxd7 {[%clk 0:00:03.2]} 1-0

[Event "Early-Titled-Tuesday-Blitz-January-23-2024"]
[Site "Chess.com"]
[Date "2024.01.23"]
[Round "5"]
[White "Al_Shima"]
[Black "LangesNasenhaar"]
[Result "1-0"]
[WhiteElo "2244"]
[BlackElo "2411"]
[TimeControl "180+1"]
[EndTime "8:55:41 PST"]
[Termination "Al_Shima won by checkmate"]

1. d4 {[%clk 0:03:00.9]} 1... g6 {[%clk 0:02:59.4]} 2. Nc3 {[%clk 0:03:01]} 2...
Bg7 {[%clk 0:02:59.9]} 3. e4 {[%clk 0:03:01.6]} 3... c6 {[%clk 0:02:59.3]} 4.
Nf3 {[%clk 0:02:59.6]} 4... d5 {[%clk 0:02:59.7]} 5. h3 {[%clk 0:02:59.8]} 5...
dxe4 {[%clk 0:02:54.7]} 6. Nxe4 {[%clk 0:03:00.7]} 6... Nf6 {[%clk 0:02:54.9]}
7. Nxf6+ {[%clk 0:02:58.2]} 7... exf6 {[%clk 0:02:55.2]} 8. Be3 {[%clk
0:02:58.4]} 8... O-O {[%clk 0:02:55]} 9. Qd2 {[%clk 0:02:58.6]} 9... Re8 {[%clk
0:02:53.8]} 10. O-O-O {[%clk 0:02:58.6]} 10... Be6 {[%clk 0:02:52.4]} 11. Kb1
{[%clk 0:02:56]} 11... Nd7 {[%clk 0:02:51.1]} 12. Bd3 {[%clk 0:02:43.1]} 12...
Nb6 {[%clk 0:02:49.3]} 13. Bh6 {[%clk 0:02:42.2]} 13... Bh8 {[%clk 0:02:45.2]}
14. Rhe1 {[%clk 0:02:16.5]} 14... a5 {[%clk 0:02:36.2]} 15. h4 {[%clk
0:01:49.1]} 15... Qd5 {[%clk 0:02:25.4]} 16. b3 {[%clk 0:01:47.2]} 16... a4
{[%clk 0:02:16]} 17. c4 {[%clk 0:01:42.5]} 17... Qd7 {[%clk 0:02:08.8]} 18. h5
{[%clk 0:01:40.9]} 18... axb3 {[%clk 0:02:00.4]} 19. axb3 {[%clk 0:01:39]} 19...
Ra3 {[%clk 0:01:41.8]} 20. Qb4 {[%clk 0:01:26.5]} 20... Rea8 {[%clk 0:01:25.2]}
21. Qxb6 {[%clk 0:01:21.5]} 21... Bg4 {[%clk 0:00:57.7]} 22. hxg6 {[%clk
0:01:03.1]} 22... hxg6 {[%clk 0:00:57.3]} 23. Kb2 {[%clk 0:00:40.5]} 23... Bxf3
{[%clk 0:00:52.1]} 24. gxf3 {[%clk 0:00:38.8]} 24... f5 {[%clk 0:00:51.7]} 25.
Bb1 {[%clk 0:00:21.6]} 25... R3a6 {[%clk 0:00:37.8]} 26. Qc5 {[%clk 0:00:21.7]}
26... b6 {[%clk 0:00:33.6]} 27. Qe7 {[%clk 0:00:14.9]} 27... Bxd4+ {[%clk
0:00:29.5]} 28. Kc2 {[%clk 0:00:14]} 28... Qxe7 {[%clk 0:00:27]} 29. Rxe7 {[%clk
0:00:14.9]} 29... Bxf2 {[%clk 0:00:27.9]} 30. Rdd7 {[%clk 0:00:14]} 30... Kh7
{[%clk 0:00:13.1]} 31. Bg5 {[%clk 0:00:13.7]} 31... Rf8 {[%clk 0:00:12.9]} 32.
Rxf7+ {[%clk 0:00:13.8]} 32... Rxf7 {[%clk 0:00:13.6]} 33. Rxf7+ {[%clk
0:00:14.7]} 33... Kg8 {[%clk 0:00:14.5]} 34. Rc7 {[%clk 0:00:10.6]} 34... Ra8
{[%clk 0:00:12]} 35. Rxc6 {[%clk 0:00:09.3]} 35... Re8 {[%clk 0:00:12.8]} 36.
Rxg6+ {[%clk 0:00:07.5]} 36... Kf7 {[%clk 0:00:13.2]} 37. Rf6+ {[%clk
0:00:06.8]} 37... Kg7 {[%clk 0:00:13.8]} 38. Rxf5 {[%clk 0:00:06.3]} 38... Re2+
{[%clk 0:00:14.1]} 39. Kd3 {[%clk 0:00:04.9]} 39... Rb2 {[%clk 0:00:14]} 40. Bc2
{[%clk 0:00:05.1]} 40... Kg6 {[%clk 0:00:13.2]} 41. Bd2 {[%clk 0:00:04.9]} 41...
Kxf5 {[%clk 0:00:11.5]} 42. Kc3+ {[%clk 0:00:04.9]} 42... Ke5 {[%clk 0:00:10]}
43. Kxb2 {[%clk 0:00:05]} 43... Kd4 {[%clk 0:00:10.9]} 44. f4 {[%clk 0:00:04.7]}
44... Bg3 {[%clk 0:00:10.8]} 45. f5 {[%clk 0:00:04.9]} 45... Be5 {[%clk
0:00:11.7]} 46. Bc3+ {[%clk 0:00:04.9]} 46... Ke3 {[%clk 0:00:12]} 47. Bxe5
{[%clk 0:00:05.8]} 47... Kd2 {[%clk 0:00:11.4]} 48. f6 {[%clk 0:00:05.9]} 48...
b5 {[%clk 0:00:12.3]} 49. f7 {[%clk 0:00:06.8]} 49... b4 {[%clk 0:00:13.2]} 50.
f8=Q {[%clk 0:00:06.5]} 50... Ke3 {[%clk 0:00:13.7]} 51. Qf4+ {[%clk 0:00:05.8]}
51... Ke2 {[%clk 0:00:14.6]} 52. Qe4+ {[%clk 0:00:05.9]} 52... Kd2 {[%clk
0:00:15.1]} 53. Bf4# {[%clk 0:00:05.6]} 1-0

[Event "Early-Titled-Tuesday-Blitz-January-23-2024"]
[Site "Chess.com"]
[Date "2024.01.23"]
[Round "5"]
[White "GMSrinath"]
[Black "1mbl4"]
[Result "1-0"]
[WhiteElo "2834"]
[BlackElo "2576"]
[TimeControl "180+1"]
[EndTime "8:55:42 PST"]
[Termination "GMSrinath won by resignation"]

1. Nf3 {[%clk 0:03:00.9]} 1... Nf6 {[%clk 0:02:58.9]} 2. c4 {[%clk 0:03:01.4]}
2... g6 {[%clk 0:02:57.9]} 3. g3 {[%clk 0:02:58.6]} 3... Bg7 {[%clk 0:02:57.9]}
4. Bg2 {[%clk 0:02:56.5]} 4... O-O {[%clk 0:02:57.2]} 5. O-O {[%clk 0:02:54.7]}
5... d6 {[%clk 0:02:57.3]} 6. d4 {[%clk 0:02:54.8]} 6... Nbd7 {[%clk 0:02:56.8]}
7. Nc3 {[%clk 0:02:54.9]} 7... e5 {[%clk 0:02:57]} 8. e4 {[%clk 0:02:53.5]} 8...
exd4 {[%clk 0:02:56.8]} 9. Nxd4 {[%clk 0:02:53.1]} 9... Re8 {[%clk 0:02:57.4]}
10. Re1 {[%clk 0:02:53]} 10... Nc5 {[%clk 0:02:56.7]} 11. h3 {[%clk 0:02:52.9]}
11... Bd7 {[%clk 0:02:54.9]} 12. b3 {[%clk 0:02:49]} 12... Qc8 {[%clk
0:02:48.9]} 13. Kh2 {[%clk 0:02:48.6]} 13... Re5 {[%clk 0:02:48.2]} 14. f4
{[%clk 0:02:00.3]} 14... Rh5 {[%clk 0:02:44]} 15. f5 {[%clk 0:02:00.2]} 15...
gxf5 {[%clk 0:01:29.4]} 16. Nd5 {[%clk 0:01:59.2]} 16... Nxd5 {[%clk 0:01:28.3]}
17. exd5 {[%clk 0:01:58.1]} 17... f4 {[%clk 0:01:14.1]} 18. Qxh5 {[%clk
0:01:13.1]} 18... fxg3+ {[%clk 0:01:13.1]} 19. Kh1 {[%clk 0:01:12.9]} 19... Bxd4
{[%clk 0:01:12.7]} 20. Bh6 {[%clk 0:01:13.4]} 20... Nd3 {[%clk 0:01:05.6]} 21.
Qg5+ {[%clk 0:00:17.9]} 21... Kh8 {[%clk 0:01:04.3]} 22. Qxg3 {[%clk 0:00:18.7]}
22... Nxe1 {[%clk 0:00:52.9]} 23. Rxe1 {[%clk 0:00:19.1]} 23... Qg8 {[%clk
0:00:50.2]} 24. Qf4 {[%clk 0:00:15]} 24... Bc3 {[%clk 0:00:39.8]} 25. Re3 {[%clk
0:00:13.9]} 25... Bb2 {[%clk 0:00:35.7]} 26. Rg3 {[%clk 0:00:11.9]} 26... Qe8
{[%clk 0:00:32.9]} 27. Qf2 {[%clk 0:00:08.9]} 27... Be5 {[%clk 0:00:27.2]} 28.
Re3 {[%clk 0:00:09]} 28... f6 {[%clk 0:00:24.4]} 29. Bf4 {[%clk 0:00:07.6]}
29... Qg6 {[%clk 0:00:22.5]} 30. Rg3 {[%clk 0:00:06.8]} 30... Qf5 {[%clk
0:00:18]} 31. Rf3 {[%clk 0:00:05.1]} 31... Qb1+ {[%clk 0:00:13.4]} 32. Kh2
{[%clk 0:00:04.9]} 32... Rg8 {[%clk 0:00:13.9]} 33. Bxe5 {[%clk 0:00:03.8]}
33... fxe5 {[%clk 0:00:13.5]} 34. Rf7 {[%clk 0:00:04.4]} 34... Qg6 {[%clk
0:00:07.5]} 35. Rxd7 {[%clk 0:00:03.5]} 35... e4 {[%clk 0:00:05.9]} 36. Qd4+
{[%clk 0:00:02.8]} 36... Rg7 {[%clk 0:00:05.3]} 37. Rd8+ {[%clk 0:00:03]} 1-0

[Event "Early-Titled-Tuesday-Blitz-January-23-2024"]
[Site "Chess.com"]
[Date "2024.01.23"]
[Round "5"]
[White "MIss_MIaMI"]
[Black "hsd2016"]
[Result "0-1"]
[WhiteElo "2439"]
[BlackElo "2297"]
[TimeControl "180+1"]
[EndTime "8:55:42 PST"]
[Termination "hsd2016 won by checkmate"]

1. e4 {[%clk 0:03:00.9]} 1... c5 {[%clk 0:02:57.5]} 2. Nf3 {[%clk 0:03:01]} 2...
e6 {[%clk 0:02:55.3]} 3. d4 {[%clk 0:03:01.4]} 3... cxd4 {[%clk 0:02:56.2]} 4.
c3 {[%clk 0:03:01.8]} 4... a6 {[%clk 0:02:57.1]} 5. Bd3 {[%clk 0:03:01.3]} 5...
dxc3 {[%clk 0:02:57.1]} 6. Nxc3 {[%clk 0:03:02.2]} 6... Nc6 {[%clk 0:02:57.4]}
7. O-O {[%clk 0:03:02.7]} 7... d6 {[%clk 0:02:56.5]} 8. Qe2 {[%clk 0:03:03.1]}
8... e5 {[%clk 0:02:57]} 9. h3 {[%clk 0:03:01]} 9... Nf6 {[%clk 0:02:57.2]} 10.
Rd1 {[%clk 0:03:01.4]} 10... Be7 {[%clk 0:02:57.9]} 11. Bc4 {[%clk 0:02:52.4]}
11... O-O {[%clk 0:02:57.7]} 12. Bg5 {[%clk 0:02:49.9]} 12... h6 {[%clk
0:02:56.6]} 13. Bh4 {[%clk 0:02:48.7]} 13... b5 {[%clk 0:02:54.8]} 14. Bb3
{[%clk 0:02:41.4]} 14... Bb7 {[%clk 0:02:55.2]} 15. Bxf6 {[%clk 0:02:36.6]}
15... Bxf6 {[%clk 0:02:54.7]} 16. Nd5 {[%clk 0:02:37.5]} 16... Rc8 {[%clk
0:02:51.9]} 17. Rd2 {[%clk 0:02:30]} 17... Bg5 {[%clk 0:01:58.5]} 18. Nxg5
{[%clk 0:02:27.2]} 18... Qxg5 {[%clk 0:01:59.4]} 19. Nb6 {[%clk 0:02:04.8]}
19... Rcd8 {[%clk 0:01:58.4]} 20. Bd5 {[%clk 0:01:48.2]} 20... Nd4 {[%clk
0:00:32.9]} 21. Rxd4 {[%clk 0:01:46.6]} 21... exd4 {[%clk 0:00:33.8]} 22. Bxb7
{[%clk 0:01:46.7]} 22... Qe7 {[%clk 0:00:31.9]} 23. Bxa6 {[%clk 0:00:46.9]}
23... Qa7 {[%clk 0:00:26.7]} 24. Bxb5 {[%clk 0:00:45.3]} 24... Qxb6 {[%clk
0:00:26.3]} 25. Bc4 {[%clk 0:00:41.5]} 25... Rfe8 {[%clk 0:00:21.3]} 26. Bd5
{[%clk 0:00:36.6]} 26... Rc8 {[%clk 0:00:21.6]} 27. b3 {[%clk 0:00:34.4]} 27...
Rc3 {[%clk 0:00:20.5]} 28. Qd2 {[%clk 0:00:33.9]} 28... Rec8 {[%clk 0:00:19.1]}
29. Qf4 {[%clk 0:00:33.4]} 29... Qc7 {[%clk 0:00:17.3]} 30. Kh2 {[%clk
0:00:31.5]} 30... Qe7 {[%clk 0:00:16.8]} 31. a4 {[%clk 0:00:27.8]} 31... R8c7
{[%clk 0:00:09.3]} 32. a5 {[%clk 0:00:27.1]} 32... Qe5 {[%clk 0:00:06.7]} 33. g3
{[%clk 0:00:06.7]} 33... Qxf4 {[%clk 0:00:05.8]} 34. gxf4 {[%clk 0:00:07.6]}
34... Ra7 {[%clk 0:00:05.7]} 35. a6 {[%clk 0:00:07.4]} 35... d3 {[%clk
0:00:05.9]} 36. Kg2 {[%clk 0:00:07.1]} 36... d2 {[%clk 0:00:05.1]} 37. Rd1
{[%clk 0:00:07.3]} 37... Rxa6 {[%clk 0:00:05.2]} 38. Rxd2 {[%clk 0:00:07]} 38...
Kf8 {[%clk 0:00:05.8]} 39. Bc4 {[%clk 0:00:06.6]} 39... Rb6 {[%clk 0:00:05.9]}
40. f3 {[%clk 0:00:07.1]} 40... Ke7 {[%clk 0:00:06.3]} 41. Kg3 {[%clk
0:00:07.6]} 41... f6 {[%clk 0:00:06.7]} 42. Kg4 {[%clk 0:00:08]} 42... Rc1
{[%clk 0:00:04.4]} 43. Ra2 {[%clk 0:00:07.9]} 43... Rb7 {[%clk 0:00:04.1]} 44.
Kf5 {[%clk 0:00:06.2]} 44... Rg1 {[%clk 0:00:03.4]} 45. Bd5 {[%clk 0:00:03.4]}
45... g6# {[%clk 0:00:03.9]} 0-1